bitfinex/quotes_ETHUSD_20240819
["timestamp","ask_amount","ask_price","bid_price","bid_amount"]
[1724061243643,3.8616,2589.6,2588.5,8.3712]
[1724061243839,8.1281,2589.9,2588.0,3.8639]
[1724061243840,8.16566028,2589.5,2588.0,3.8639]
[1724061244073,8.1281,2588.9,2588.0,3.8639]
[1724061244343,11.99082,2588.9,2587.8,3.86418]
[1724061244540,11.99082,2588.9,2587.6,39.802819]
[1724061244541,3.86303,2588.7,2587.6,39.802819]
[1724061244783,3.86303,2588.7,2587.7,3.80945125]
[1724061245171,3.86303,2588.7,2587.8,3.86426]
[1724061245372,0.24595518,2588.6,2587.8,3.86426]
[1724061245680,0.24595518,2588.6,2587.8,3.86419]
[1724061245951,4.10907518,2588.6,2587.6,3.86449]
[1724061246095,3.86326,2588.5,2587.6,3.86449]
[1724061246694,0.24595518,2588.4,2587.6,3.86449]
[1724061246932,3.90065028,2588.6,2587.6,3.86449]
[1724061247119,0.24595518,2588.3,2587.6,3.86449]
[1724061247311,3.90065028,2588.6,2587.7,3.86433]
[1724061247312,0.03756028,2588.6,2587.7,3.86433]
[1724061247497,8.1281,2588.9,2587.7,3.86433]
[1724061247498,0.24595518,2588.2,2588.0,3.86395]
[1724061247696,11.99076,2588.9,2587.8,3.86419]
[1724061247896,0.24595518,2588.1,2587.8,0.386419]
[1724061248096,3.86303,2588.7,2587.4,39.28570716]
[1724061248345,0.24595518,2588.0,2587.5,3.86464]
[1724061248641,0.03756028,2588.4,2587.5,3.86471]
[1724061248939,3.86284,2588.8,2587.6,3.86444]
[1724061249127,0.24595518,2588.3,2587.8,3.8642]
[1724061249323,3.86295,2588.7,2587.8,3.8642]
[1724061249529,0.24595518,2588.2,2587.8,3.8642]
[1724061249701,3.86295,2588.7,2587.8,3.8642]
[1724061250041,0.24595518,2588.1,2587.7,3.86443]
[1724061250224,3.86309,2588.6,2587.8,3.86427]
[1724061250599,0.24595518,2588.5,2587.8,3.86428]
[1724061250794,3.86295,2588.7,2587.8,3.86428]
[1724061251136,3.86284,2588.8,2587.8,3.86428]
[1724061251137,0.24595518,2588.6,2588.3,7.72684]
[1724061251340,3.86229,2589.2,2588.1,3.86369]
[1724061251653,0.24595518,2588.5,2588.2,3.86368]
[1724061251813,3.86235,2589.1,2588.1,3.86369]
[1724061252013,0.24595518,2588.4,2588.1,3.86369]
[1724061252226,3.86235,2589.1,2588.2,3.86368]
[1724061252410,0.24595518,2588.3,2588.2,3.86368]
[1724061252611,3.86235,2589.1,2588.2,3.86368]
[1724061252839,3.86235,2589.1,2588.3,3.86352]
[1724061253054,0.24595518,2589.0,2588.6,3.86299]
[1724061253342,7.8234,2589.4,2588.6,3.86296]
[1724061253658,0.24595518,2588.9,2588.8,3.86278]
[1724061253795,11.44439,2589.8,2588.9,3.86259]
[1724061254001,11.44439,2589.8,2588.8,3.86278]
[1724061254002,7.583,2589.8,2589.2,3.8621]
[1724061254260,0.24595518,2589.7,2589.2,3.8621]
[1724061254602,3.86101,2590.0,2589.2,3.8621]
[1724061254830,0.24595518,2589.6,2589.0,3.86248]
[1724061255033,3.86132,2589.8,2588.9,3.86264]
[1724061255243,0.24527118,2589.5,2588.6,6.86298]
[1724061255545,7.6774,2590.3,2589.0,3.86249]
[1724061255546,0.24527118,2589.4,2589.0,3.86249]
[1724061255729,3.86121,2589.9,2589.0,3.86249]
[1724061255902,0.24527118,2589.3,2589.1,3.86233]
[1724061256240,3.86121,2589.9,2589.0,3.86248]
[1724061256441,3.86121,2589.9,2589.0,7.72496]
[1724061256652,0.24527118,2589.8,2589.0,3.86248]
[1724061257030,3.86101,2590.0,2589.1,3.86231]
[1724061257257,7.6774,2589.6,2587.8,8.65462716]
[1724061257561,0.24527118,2589.5,2587.8,8.2012]
[1724061257856,0.24527118,2589.5,2588.7,3.86289]
[1724061258432,0.24527118,2589.5,2588.9,3.86252]
[1724061258635,0.24527118,2589.5,2588.6,3.86301]
[1724061258802,0.24527118,2589.5,2588.5,3.86323]
[1724061258803,3.86215,2589.3,2588.5,3.86323]
[1724061259003,7.72367,2589.5,2588.5,3.86323]
[1724061259210,0.24455832,2589.2,2588.5,3.86323]
[1724061259420,3.86179,2589.5,2588.6,3.86307]
[1724061259659,0.24455832,2589.1,2588.4,7.549593]
[1724061259840,3.86192,2589.4,2588.5,6.86323]
[1724061260213,0.24449611,2589.3,2588.6,3.86295]
[1724061260609,7.6774,2589.6,2588.9,3.86262]
[1724061260809,7.6774,2589.6,2588.7,3.86285]
[1724061260810,0.2445127,2589.2,2588.6,1.072618]
[1724061261038,7.6774,2589.6,2588.5,6.86323]
[1724061261039,3.86192,2589.4,2588.5,6.86323]
[1724061261244,7.6774,2589.6,2588.0,3.86388]
[1724061261418,3.86242,2589.1,2588.2,3.8636]
[1724061261814,4.1071327,2589.0,2588.0,6.86388]
[1724061262134,4.1071327,2589.0,2588.0,8.370388]
[1724061262308,0.2445127,2589.0,2588.2,3.86368]
[1724061262509,3.86205,2589.3,2588.2,3.86368]
[1724061262708,7.6774,2589.6,2588.5,3.86311]
[1724061262907,0.2445127,2589.2,2588.5,3.86313]
[1724061263210,11.53909,2589.6,2588.6,3.86306]
[1724061263411,0.2445127,2589.1,2588.7,3.8628]
[1724061263607,7.6774,2589.6,2588.8,3.86278]
[1724061263847,0.2445127,2589.0,2588.9,3.86264]
[1724061264047,3.8611,2590.0,2588.8,3.86268]
[1724061264048,7.72223,2590.0,2588.8,3.86268]
[1724061264249,3.86136,2589.8,2588.9,3.86257]
[1724061264815,0.2445127,2589.7,2588.9,3.86257]
[1724061265525,7.8959,2589.6,2587.6,8.0103]
[1724061265728,3.86197,2589.4,2588.3,3.86343]
[1724061265937,3.86176,2589.5,2588.7,3.86292]
[1724061266141,0.2445127,2589.3,2588.7,3.86287]
[1724061266327,11.75751,2589.6,2588.7,3.86283]
[1724061266533,0.24464543,2589.2,2588.7,3.86283]
[1724061266729,11.75751,2589.6,2588.7,3.86283]
[1724061266933,11.75751,2589.6,2588.8,3.86277]
[1724061267154,0.24464543,2589.5,2588.9,7.72518]
[1724061267360,0.24464543,2589.5,2588.9,3.86257]
[1724061267559,0.24464543,2589.5,2589.0,3.86249]
[1724061267745,0.24464543,2589.4,2589.0,3.86237]
[1724061267930,3.86116,2589.9,2589.0,3.86237]
[1724061268263,0.24464543,2589.3,2588.5,5.0028843]
[1724061268425,3.86116,2589.9,2588.8,3.86272]
[1724061268619,0.24464543,2589.2,2588.8,3.86272]
[1724061268973,3.86146,2589.7,2588.8,3.86278]
[1724061269124,3.86146,2589.7,2588.6,5.62797643]
[1724061269320,3.86182,2589.5,2588.7,3.86289]
[1724061269561,3.86182,2589.5,2588.6,3.86308]
[1724061269922,0.24464958,2589.4,2588.6,3.86308]
[1724061270325,0.24464958,2589.4,2588.6,0.4124262]
[1724061270552,7.72417,2589.3,2588.5,5.369]
[1724061270864,3.86205,2589.3,2588.1,5.369]
[1724061271023,0.24461225,2589.2,2588.5,3.8631]
[1724061271366,3.86186,2589.5,2588.5,0.38631]
[1724061271567,0.24461225,2589.1,2588.6,3.86302]
[1724061271866,3.86197,2589.4,2588.5,7.72627]
[1724061272078,0.24459566,2589.0,2588.6,3.86309]
[1724061272358,0.24459566,2589.0,2588.1,10.42023]
[1724061272359,0.24459566,2588.9,2588.7,3.86293]
[1724061272561,3.86208,2589.3,2588.0,3.0]
[1724061272767,3.86208,2589.3,2588.2,3.86354]
[1724061272956,0.28206882,2589.2,2588.0,3.86384]
[1724061273119,0.28206882,2589.2,2588.2,3.86357]
[1724061273120,3.9901098,2589.1,2588.2,3.86357]
[1724061273321,0.1276898,2589.0,2588.3,3.86353]
[1724061273522,0.24450854,2589.0,2588.2,3.86357]
[1724061273770,0.24450854,2589.0,2588.0,3.86388]
[1724061273771,0.24450854,2589.0,2588.1,3.86383]
[1724061273920,0.24450854,2589.0,2588.1,3.86382]
[1724061274120,0.24450854,2589.0,2588.0,3.86388]
[1724061274340,4.10708854,2589.0,2588.0,3.86388]
[1724061274548,11.45865,2588.9,2588.0,3.86388]
[1724061274928,0.24451269,2588.8,2588.0,3.86388]
[1724061275139,0.24451269,2588.8,2588.1,3.86381]
[1724061275470,0.24451269,2588.8,2588.0,3.86397]
[1724061275679,0.24451269,2588.8,2588.1,3.86374]
[1724061276063,0.24451269,2588.8,2588.0,3.86389]
[1724061276515,0.24451269,2588.8,2587.3,0.45819178]
[1724061276664,3.86317,2588.6,2587.7,3.86441]
[1724061276861,4.10730971,2588.5,2587.5,3.86472]
[1724061277067,4.10730971,2588.5,2587.6,3.86457]
[1724061277068,0.24403971,2588.5,2587.6,3.86457]
[1724061277333,0.24403971,2588.5,2587.5,3.86462]
[1724061277501,4.10731971,2588.5,2587.5,3.86462]
[1724061278426,0.12772046,2588.4,2587.5,3.86462]
[1724061278627,3.86347,2588.4,2587.5,3.86462]
[1724061278987,0.24403971,2588.3,2587.5,3.86462]
[1724061279436,0.22963971,2588.3,2587.5,3.86462]
[1724061280699,0.22963971,2588.3,2587.5,5.369]
[1724061281030,3.86229,2589.2,2588.2,3.86368]
[1724061281214,8.2521,2589.3,2588.3,0.386368]
[1724061281448,12.11415,2589.3,2588.4,7.72658]
[1724061281631,9.03786177,2589.8,2588.5,0.8112948]
[1724061281840,9.03786177,2589.8,2588.9,3.86249]
[1724061281841,8.2521,2589.8,2588.9,3.86249]
[1724061281999,3.86148,2589.7,2588.9,0.923149]
[1724061282340,3.86161,2589.6,2588.9,0.923149]
[1724061282648,3.86161,2589.6,2588.7,5.369]
[1724061282811,3.86148,2589.7,2588.8,3.86276]
[1724061283012,7.72301,2589.7,2588.8,3.86276]
[1724061283335,3.86198,2589.4,2588.6,3.0]
[1724061283587,3.86198,2589.4,2588.5,4.6745248]
[1724061283739,3.86175,2589.5,2588.6,4.33053248]
[1724061283941,3.86146,2589.7,2588.8,3.86278]
[1724061284092,3.86146,2589.7,2588.8,7.72549]
[1724061284295,0.78576177,2589.7,2588.9,3.86263]
[1724061284523,0.78576177,2589.7,2588.9,0.82395227]
[1724061284524,1.34337082,2589.7,2588.9,0.82395227]
[1724061284723,5.20483082,2589.7,2588.9,0.82395227]
[1724061284945,9.03786177,2589.8,2588.8,3.8627]
[1724061284946,12.89918177,2589.8,2588.8,3.8627]
[1724061285256,12.89918177,2589.8,2588.0,11.70533]
[1724061285257,3.86201,2589.4,2588.5,3.86324]
[1724061285415,3.86201,2589.4,2588.6,3.0]
[1724061285599,0.78576177,2589.6,2588.0,11.70528]
[1724061285804,7.9142,2589.1,2588.0,5.571308]
[1724061286005,3.86283,2588.8,2588.0,1.707428]
[1724061286314,7.9142,2588.6,2586.9,0.3872]
[1724061286632,3.86378,2588.2,2587.1,3.86531]
[1724061286832,7.72758,2588.2,2587.3,3.86503]
[1724061287149,4.09914344,2588.1,2587.2,3.86517]
[1724061287361,0.23522344,2588.1,2587.2,4.251631]
[1724061287519,4.09913344,2588.1,2587.2,0.386531]
[1724061287714,3.86492,2587.4,2586.5,3.86614]
[1724061287961,3.86475,2587.5,2586.5,3.86614]
[1724061288163,3.86475,2587.5,2586.5,0.44720001]
[1724061288164,0.23498508,2587.3,2586.5,0.44720001]
[1724061288313,3.8649,2587.4,2585.7,3.93453263]
[1724061288314,3.86558,2587.0,2585.9,3.86702]
[1724061288663,3.86578,2586.8,2586.0,0.386702]
[1724061288881,3.86594,2586.7,2586.0,0.386702]
[1724061289175,4.10114835,2586.6,2585.5,3.86758]
[1724061289374,4.10114835,2586.6,2585.6,5.10051051]
[1724061289516,4.10112835,2586.6,2585.6,1.23302051]
[1724061289713,3.86624,2586.5,2585.6,5.10057051]
[1724061289918,3.86641,2586.4,2585.7,0.89681505]
[1724061290174,4.10107291,2586.4,2585.5,3.86758]
[1724061290516,0.23466291,2586.4,2585.6,0.386758]
[1724061290718,0.23466291,2586.4,2585.9,7.73403]
[1724061290918,11.96506,2586.9,2585.9,3.86698]
[1724061290919,3.86579,2586.8,2585.9,3.86698]
[1724061291157,11.96506,2586.9,2586.1,3.86681]
[1724061291158,0.23466291,2586.3,2586.1,3.86681]
[1724061291341,8.0994,2586.9,2586.1,3.86681]
[1724061291543,8.0994,2586.9,2585.6,3.386758]
[1724061291544,0.23466291,2586.2,2585.6,3.386758]
[1724061291760,8.0994,2586.9,2586.0,3.86682]
[1724061291965,8.0994,2586.9,2586.2,3.86666]
[1724061292165,0.23466291,2586.8,2586.2,3.86666]
[1724061292347,0.23466291,2586.8,2586.0,3.86682]
[1724061292673,0.23466291,2586.8,2586.7,3.86592]
[1724061292873,0.23466291,2586.8,2586.7,7.73184]
[1724061293173,8.1915,2587.8,2586.4,3.0]
[1724061293316,8.1915,2588.3,2586.8,5.545]
[1724061293519,8.1915,2588.3,2587.2,3.8651]
[1724061293770,0.23413141,2588.2,2587.3,3.86501]
[1724061293919,4.09782141,2588.2,2587.3,3.86501]
[1724061294356,4.09782141,2588.2,2587.2,7.73018]
[1724061294751,3.86386,2588.1,2587.2,3.86508]
[1724061295065,3.864,2588.0,2587.0,7.73069]
[1724061295276,3.864,2588.0,2587.1,3.86531]
[1724061295425,0.23413141,2587.9,2587.1,3.86531]
[1724061295623,0.23413141,2587.9,2587.1,1.2358262]
[1724061295830,3.86429,2587.8,2586.9,6.86562]
[1724061296322,0.23413141,2587.7,2587.0,3.86547]
[1724061296525,3.86391,2588.1,2587.2,3.86512]
[1724061296781,0.23413141,2587.6,2587.2,4.4143958]
[1724061296983,3.86377,2588.2,2587.2,4.4143658]
[1724061297271,8.1915,2588.3,2587.4,3.86484]
[1724061297434,0.23418289,2588.1,2587.4,3.86484]
[1724061297636,8.1915,2588.3,2587.4,3.86484]
[1724061297839,0.23419126,2588.0,2587.4,7.72968]
[1724061298033,8.1915,2588.3,2587.6,3.86447]
[1724061298245,0.23422475,2587.9,2587.4,0.87203924]
[1724061298438,0.23422475,2587.9,2586.9,3.0]
[1724061298439,3.86391,2588.1,2586.9,3.0]
[1724061298672,3.86391,2588.1,2587.0,0.8545]
[1724061298967,0.23422893,2588.0,2587.0,0.8545]
[1724061299124,0.23422893,2588.0,2587.1,3.86525]
[1724061299325,4.09828893,2588.0,2587.1,3.86533]
[1724061299523,4.09828893,2588.0,2587.1,5.023861]
[1724061299985,7.96239893,2588.0,2587.1,5.023861]
[1724061300146,7.96239893,2588.0,2586.9,6.86548]
[1724061300147,3.86435,2587.8,2586.9,3.0]
[1724061300485,7.6018,2587.9,2586.3,9.41141]
[1724061300640,3.86563,2586.9,2586.0,3.86686]
[1724061300849,7.6018,2587.0,2586.2,3.86657]
[1724061301364,0.23409916,2586.9,2586.0,7.73376]
[1724061301525,0.23409916,2586.9,2586.1,3.8668]
[1724061301731,0.23409916,2586.9,2586.1,4.8118726]
[1724061301950,0.23409916,2586.9,2585.7,7.7585]
[1724061301951,3.86618,2586.6,2585.6,3.86748]
[1724061302225,0.23409916,2586.9,2585.6,3.86748]
[1724061302226,7.9979,2586.4,2585.8,3.86717]
[1724061302432,7.9979,2586.4,2585.8,4.640639]
[1724061302831,0.23409078,2586.3,2585.6,3.86747]
[1724061303035,0.23409078,2586.3,2585.8,3.86717]
[1724061303399,0.23409078,2586.2,2585.6,3.86745]
[1724061303672,0.23409078,2586.2,2585.5,3.86772]
[1724061303849,3.86623,2586.5,2585.6,3.86757]
[1724061304049,7.9325,2586.8,2585.7,3.86741]
[1724061304050,0.23409078,2586.1,2585.7,3.86741]
[1724061304381,0.23409078,2586.0,2585.5,5.195759]
[1724061304542,0.23409078,2586.0,2585.6,6.86756]
[1724061304748,3.86631,2586.5,2585.6,7.648446]
[1724061304975,0.23409078,2585.9,2585.6,3.0]
[1724061305146,0.03756028,2586.5,2585.3,5.545]
[1724061305147,3.86668,2586.2,2585.3,12.41301]
[1724061305353,3.86668,2586.2,2585.4,6.86785]
[1724061305690,0.23409078,2586.1,2585.4,10.7357]
[1724061305864,0.23409078,2586.1,2585.5,3.8676]
[1724061306177,11.79838,2586.8,2586.2,3.86654]
[1724061306178,7.9325,2586.8,2586.2,3.86654]
[1724061306476,3.866,2586.7,2585.8,7.73431]
[1724061306675,7.8494,2586.5,2585.8,7.73432]
[1724061306886,7.8494,2586.5,2585.4,3.0]
[1724061306887,0.03756028,2586.4,2585.4,6.86775]
[1724061307093,3.90400028,2586.4,2585.4,8.2718356]
[1724061307384,0.78576177,2587.3,2584.4,0.60629315]
[1724061307385,3.86822,2585.2,2584.4,0.60629315]
[1724061307565,3.86818,2585.2,2584.3,3.86941]
[1724061307765,3.86818,2585.2,2584.4,0.386942]
[1724061308093,0.23409078,2585.1,2584.4,0.386942]
[1724061308389,0.03756028,2585.2,2584.2,3.86961]
[1724061308553,11.71733,2585.4,2584.3,0.386961]
[1724061308554,0.23409078,2585.0,2584.3,0.386961]
[1724061308737,7.8494,2585.4,2584.8,3.86875]
[1724061308972,0.23409078,2584.9,2584.7,3.86889]
[1724061309196,7.8494,2585.4,2584.7,3.8689]
[1724061309330,0.23409078,2584.8,2584.7,4.25568]
[1724061309682,7.5523,2585.9,2584.9,3.86854]
[1724061309845,7.5523,2585.9,2585.1,3.86819]
[1724061310038,0.23221361,2585.8,2585.1,3.86819]
[1724061310237,0.23221361,2585.8,2584.8,7.9578]
[1724061310457,7.5523,2586.3,2585.1,5.545]
[1724061310736,7.5523,2586.3,2585.8,3.86722]
[1724061310941,7.5523,2586.3,2585.8,7.7344]
[1724061310942,0.23223039,2586.2,2585.8,7.7344]
[1724061311181,0.23223039,2586.2,2585.8,0.77344]
[1724061311394,11.47317,2586.8,2585.7,6.86731]
[1724061311692,0.23239813,2586.1,2585.9,3.867]
[1724061312039,11.47317,2586.8,2585.7,10.73465]
[1724061312371,0.23264965,2586.7,2585.9,3.86712]
[1724061312582,0.23264965,2586.7,2586.0,3.86688]
[1724061312886,0.23264965,2586.7,2585.9,3.86712]
[1724061312887,0.23264965,2586.7,2585.9,3.867]
[1724061313040,0.23264965,2586.7,2586.0,0.4940585]
[1724061313641,0.03756028,2586.6,2585.1,5.545]
[1724061313902,0.23264965,2586.7,2585.4,3.86784]
[1724061313903,3.86652,2586.3,2585.4,3.86784]
[1724061314184,3.86652,2586.3,2585.4,0.773596]
[1724061314383,8.37778165,2586.2,2584.6,5.545]
[1724061314536,8.37778165,2586.2,2584.8,3.86865]
[1724061314537,3.86737,2585.8,2584.8,3.86865]
[1724061314739,3.86713,2585.9,2584.9,3.86852]
[1724061315280,3.86713,2585.9,2584.6,5.545]
[1724061315281,8.1077,2585.4,2584.6,5.545]
[1724061315581,0.03756028,2585.3,2584.3,3.86938]
[1724061315881,0.03756028,2585.3,2584.4,1.182103]
[1724061315882,3.86817,2585.2,2584.4,1.182103]
[1724061316199,3.86817,2585.2,2584.3,3.86938]
[1724061316332,4.13851165,2585.1,2584.1,9.4147]
[1724061316533,3.86847,2585.0,2584.1,13.28443]
[1724061316837,0.03756028,2585.1,2584.1,9.41471]
[1724061317077,8.1077,2585.4,2583.8,7.9107]
[1724061317078,3.86899,2584.7,2583.8,3.87021]
[1724061317339,3.86899,2584.7,2583.7,3.87039]
[1724061317340,0.23252137,2584.6,2583.9,3.87009]
[1724061317576,0.23252137,2584.6,2583.7,0.941539]
[1724061317753,7.8219,2585.0,2583.8,0.6486539]
[1724061318086,0.23252137,2584.5,2584.2,3.86966]
[1724061318231,7.8219,2585.0,2584.2,3.86966]
[1724061318552,3.86871,2584.9,2583.8,3.87014]
[1724061318747,7.54,2584.8,2583.8,3.87016]
[1724061319076,7.54,2584.8,2583.8,4.811666]
[1724061319247,7.54,2584.8,2584.1,3.86974]
[1724061319437,0.23189212,2584.7,2584.3,3.8694]
[1724061319637,0.23189212,2584.7,2583.9,3.87003]
[1724061319974,0.23185854,2584.6,2584.1,3.8698]
[1724061320174,0.23185854,2584.6,2583.9,4.3511846]
[1724061320373,7.54,2584.8,2583.9,4.3511846]
[1724061320539,0.23185854,2584.5,2583.9,3.87003]
[1724061320741,7.54,2584.8,2583.9,3.87003]
[1724061321071,0.23185854,2584.4,2584.2,3.86965]
[1724061321298,7.54,2584.8,2584.2,3.86965]
[1724061321503,0.23185854,2584.3,2583.8,0.941516]
[1724061321698,7.54,2584.8,2583.6,5.545]
[1724061321699,7.54,2584.8,2584.1,3.86979]
[1724061322002,7.54,2584.8,2584.1,3.86981]
[1724061322163,0.23185854,2584.7,2584.0,3.86988]
[1724061322363,0.23185854,2584.7,2584.1,3.86974]
[1724061322675,0.23185854,2584.7,2584.0,3.86988]
[1724061322855,0.23185854,2584.7,2584.1,3.86973]
[1724061323059,0.23185854,2584.7,2584.0,4.256868]
[1724061323296,0.23185854,2584.7,2584.0,3.86987]
[1724061323502,0.23185854,2584.7,2583.9,3.87002]
[1724061323704,0.23185854,2584.7,2583.9,3.8701]
[1724061323875,7.54,2584.8,2584.0,3.86981]
[1724061324074,0.23185854,2584.6,2584.0,3.86981]
[1724061324272,7.54,2584.8,2583.9,3.8701]
[1724061324273,11.40878,2584.8,2583.9,3.8701]
[1724061324473,11.40878,2584.8,2583.3,4.2581]
[1724061324474,0.23185854,2584.5,2583.3,4.2581]
[1724061324671,3.86974,2584.2,2583.3,3.8709]
[1724061325212,7.8148,2584.0,2583.1,9.4162]
[1724061325535,3.87034,2583.8,2582.9,3.87154]
[1724061325823,3.87063,2583.6,2582.7,3.87177]
[1724061326033,3.87063,2583.6,2582.5,0.1248978]
[1724061326034,7.8148,2583.3,2582.5,0.1248978]
[1724061326173,3.8717,2582.9,2582.5,0.1248978]
[1724061326515,3.87138,2583.1,2582.5,0.1248978]
[1724061326686,3.87192,2582.7,2582.5,0.1248978]
[1724061326885,15.60322,2582.6,2582.5,0.1248978]
[1724061327087,15.60322,2582.6,2581.6,0.005]
[1724061327088,3.87274,2582.2,2581.6,0.005]
[1724061327288,7.5948,2582.0,2581.6,0.005]
[1724061327485,0.72298902,2583.2,2581.6,0.005]
[1724061327486,3.87185,2582.8,2581.6,0.005]
[1724061327688,0.2304818,2581.9,2581.8,7.74639]
[1724061328001,8.2614,2583.6,2582.2,3.87262]
[1724061328202,12.13205,2583.6,2582.6,3.87194]
[1724061328385,12.13205,2583.6,2582.3,5.545]
[1724061328386,0.2304818,2583.5,2582.9,3.8715]
[1724061329016,0.2304818,2583.5,2583.2,3.87106]
[1724061329311,3.87065,2583.6,2582.7,3.87188]
[1724061329613,0.02298902,2584.5,2582.6,35.0]
[1724061329614,3.87105,2583.3,2582.6,35.0]
[1724061329813,12.13132,2584.1,2582.9,3.87147]
[1724061330014,12.13132,2584.1,2582.7,3.5]
[1724061330015,3.86998,2584.0,2582.7,3.5]
[1724061330198,0.26804208,2584.0,2582.6,35.0]
[1724061330399,3.87119,2583.2,2582.6,35.0]
[1724061330585,3.87093,2583.4,2582.6,35.0]
[1724061330991,0.2304818,2583.3,2582.6,38.80945125]
[1724061331219,3.87027,2583.8,2582.6,42.68142125]
[1724061331437,8.2614,2583.9,2583.0,7.74273]
[1724061331638,8.2614,2583.9,2583.1,3.87123]
[1724061331838,8.2614,2583.9,2583.0,3.87135]
[1724061331839,0.2304818,2583.8,2583.0,3.87135]
[1724061332185,8.2614,2583.9,2583.0,4.258485]
[1724061332376,8.2614,2583.9,2583.0,0.387135]
[1724061332577,3.87082,2583.5,2582.6,35.0]
[1724061332822,3.87097,2583.4,2582.6,35.0]
[1724061333031,8.2614,2583.9,2582.6,35.0]
[1724061333331,8.2614,2583.9,2583.0,3.87136]
[1724061333534,0.22259379,2583.8,2582.8,3.87164]
[1724061333684,0.22259379,2583.8,2583.0,3.87144]
[1724061334136,0.22259379,2583.8,2583.1,3.8712]
[1724061334278,0.22259379,2583.8,2583.3,3.87093]
[1724061334616,12.0401,2584.7,2583.3,9.41599]
[1724061334931,0.7,2585.5,2583.6,11.61168]
[1724061334932,0.22261918,2583.7,2583.6,11.61168]
[1724061335217,15.55035,2585.1,2584.2,3.86965]
[1724061335218,11.68191,2585.1,2584.2,3.86965]
[1724061335529,11.68191,2585.1,2583.8,5.545]
[1724061335530,7.8135,2585.1,2583.8,5.545]
[1724061335819,11.68192,2585.1,2583.9,3.87]
[1724061336005,11.68191,2585.1,2584.1,3.86972]
[1724061336317,11.68191,2585.1,2583.9,3.87001]
[1724061336318,3.8687,2584.9,2583.9,3.87001]
[1724061336503,3.86877,2584.8,2583.9,3.87001]
[1724061336682,3.86877,2584.8,2583.8,5.545]
[1724061336683,3.86901,2584.7,2583.8,5.545]
[1724061336875,3.86901,2584.7,2583.9,3.87011]
[1724061337079,0.22293217,2584.6,2583.9,3.87011]
[1724061337317,0.22293217,2584.6,2583.9,3.87001]
[1724061337520,11.68191,2585.1,2584.2,3.86963]
[1724061337729,11.6819,2585.1,2584.1,3.86969]
[1724061338083,3.86896,2584.7,2583.6,35.0]
[1724061338278,3.86922,2584.5,2583.6,35.0]
[1724061338482,3.90700028,2584.4,2583.6,35.0]
[1724061338798,0.21614122,2584.3,2583.6,3.87053]
[1724061339108,0.03756028,2584.5,2583.6,3.87047]
[1724061339313,3.86938,2584.4,2583.6,38.87047]
[1724061339495,0.21602204,2584.4,2583.8,3.87026]
[1724061339904,3.86908,2584.6,2583.8,3.87026]
[1724061340103,3.86908,2584.6,2583.6,9.41542]
[1724061340408,0.21602204,2584.5,2583.8,3.87019]
[1724061340606,0.21602204,2584.5,2583.6,9.41555]
[1724061340927,8.0424,2584.9,2584.3,3.86943]
[1724061341330,0.21602204,2584.8,2584.3,3.86943]
[1724061342428,3.8682,2585.2,2584.4,3.86936]
[1724061342736,11.87213,2585.3,2584.4,3.86936]
[1724061342933,8.0041,2585.3,2584.8,3.86869]
[1724061343241,0.21602204,2585.2,2585.1,9.41332]
[1724061343398,0.21602204,2585.2,2585.1,48.83164]
[1724061343594,8.3206,2586.2,2585.1,44.96332]
[1724061343595,12.18735,2586.2,2585.1,44.96332]
[1724061343830,8.3206,2586.2,2585.4,3.86779]
[1724061344013,0.21602204,2586.1,2585.4,3.86779]
[1724061344228,0.21602204,2586.1,2585.6,3.86757]
[1724061344436,8.3206,2586.2,2585.6,3.86757]
[1724061344791,12.21566,2586.6,2585.7,3.86741]
[1724061345054,12.21566,2586.6,2585.8,3.86726]
[1724061345190,4.08226204,2586.5,2585.6,3.8675]
[1724061345390,0.03756028,2586.4,2585.5,7.73532]
[1724061345590,4.08235204,2586.5,2585.6,3.86748]
[1724061345795,12.21569,2586.6,2585.5,3.86763]
[1724061345796,3.90394028,2586.4,2585.5,3.86763]
[1724061346127,0.21663892,2586.4,2585.1,44.96327]
[1724061346330,3.86639,2586.4,2585.3,3.86789]
[1724061346528,3.86653,2586.3,2585.4,3.86777]
[1724061346906,8.3495,2586.6,2585.8,3.86725]
[1724061346907,0.21679622,2586.2,2585.8,3.86725]
[1724061347113,0.21679622,2586.2,2585.6,5.545]
[1724061347317,3.86638,2586.4,2585.6,5.545]
[1724061348009,0.21682598,2586.3,2585.7,3.86741]
[1724061348347,12.21567,2586.6,2585.7,7.73468]
[1724061349620,0.2103047,2586.6,2585.8,0.66276855]
[1724061349840,0.2103047,2586.6,2586.5,3.86622]
[1724061350130,11.61773,2587.5,2586.1,17.53296]
[1724061350131,0.03756028,2587.4,2586.2,3.86655]
[1724061350312,3.86526,2587.2,2586.3,3.86645]
[1724061350512,7.8003,2586.7,2585.6,5.545]
[1724061350753,7.8003,2586.7,2586.0,3.86696]
[1724061350933,0.20328814,2586.6,2585.8,35.0]
[1724061351111,7.8003,2586.7,2585.9,3.86702]
[1724061351753,7.8003,2586.7,2585.8,3.8672]
[1724061351970,0.20328814,2586.6,2585.7,3.86731]
[1724061352275,0.20328814,2586.6,2585.9,3.86711]
[1724061352642,0.20328814,2586.6,2585.8,3.86727]
[1724061352849,0.20328814,2586.6,2585.9,3.86712]
[1724061353160,0.20328814,2586.6,2585.6,5.545]
[1724061353161,7.8003,2586.7,2586.1,3.86673]
[1724061353461,0.20328814,2586.6,2586.1,3.86673]
[1724061353659,0.20328814,2586.6,2586.5,3.86622]
[1724061353962,8.1973,2587.5,2586.1,13.4471]
[1724061354306,8.1973,2587.5,2586.2,1.18180554]
[1724061354597,0.20328814,2587.4,2586.9,3.86553]
[1724061354712,0.20328814,2587.4,2586.9,3.86554]
[1724061354933,3.86422,2587.9,2586.9,7.73109]